[Event "MARCEL 1st Div Ch-League 2019"]
[Site "Dhaka"]
[Date "2019.11.17"]
[Round "6.2"]
[White "S.A.M., Nasir"]
[Black "Sarbojit, Paul"]
[Result "0-1"]
[ECO "D02"]
[WhiteElo "2002"]
[BlackElo "2074"]
[Annotator "NA RC"]
[PlyCount "46"]
[EventDate "2019.11.12"]
[EventCountry "BAN"]
[SourceTitle "playchess.com"]
[Source "ChessBase"]
[SourceQuality "1"]
[TimeControl "5400+30"]

1. Nf3 {[%emt 0:00:00]} d5 {[%emt 0:08:56]} 2. g3 {[%emt 0:00:00]} c6 {[%emt 0:00:14]} 3. Bg2 {[%emt 0:00:01]} Bg4 {[%emt 0:00:05]} 4. h3 {[%emt 0:00:25]} Bh5 {[%emt 0:00:10]} 5. O-O {[%emt 0:00:24]} Nd7 {[%emt 0:00:05]} 6. d4 {[%emt 0:02:19]} Ngf6 {[%emt 0:01:07]} 7. Nbd2 {[%emt 0:12:01]} e6 {[%emt 0:00:12]} 8. b3 {[%emt 0:03:12]} Be7 {[%emt 0:00:29]} 9. Bb2 {[%emt 0:01:19]} a5 {[%emt 0:01:01]} 10. a4 {[%emt 0:01:09]} O-O {[%emt 0:00:34]} 11. Ne5 $11 {[%emt 0:05:58]} Nxe5 {[%emt 0:15:02]} 12. dxe5 {[%emt 0:00:28]} Nd7 {[%emt 0:00:10]} 13. g4 {[%emt 0:10:17]} Bg6 {[%emt 0:00:06]} 14. e4 {[%emt 0:04:36]} f6 {[%emt 0:09:29]} 15. f4 {[%emt 0:11:53]} fxe5 {[%emt 0:01:54]} 16. fxe5 {[%emt 0:00:27]} Qb6+ {[%emt 0:02:45]} 17. Kh1 {[%emt 0:02:16]} Rxf1+ {[%emt 0:01:01]} 18. Nxf1 {[%emt 0:03:11]} Rf8 {[%emt 0:02:46]} 19. exd5 {[%emt 0:00:59]} cxd5 {[%emt 0:02:27]} 20. c4 {[%emt 0:05:47]} Nc5 {[%emt 0:11:27]} 21. cxd5 {[%emt 0:08:08]} Nd3 {[%emt 0:00:29]} 22. Qe2 {[%emt 0:03:05]} Rf2 {[%emt 0:40:31]} 23. Qxf2 {[%emt 0:08:10]} Qxf2 {[%emt 0:00:00]} 0-1

[Event "MARCEL 1st Div Ch-League 2019"]
[Site "Dhaka"]
[Date "2019.11.17"]
[Round "6.3"]
[White "Anisuzzaman, Jewel"]
[Black "Apollosana Mangang, Rajkumar"]
[Result "1/2-1/2"]
[ECO "A24"]
[WhiteElo "1852"]
[BlackElo "2078"]
[Annotator "NA RC"]
[PlyCount "55"]
[EventDate "2019.11.12"]
[EventCountry "BAN"]
[TimeControl "5400+30"]

1. c4 {[%emt 1:30:30]} Nf6 {[%emt 0:00:00]} 2. Nc3 {[%emt 0:00:06]} g6 {[%emt 1:31:00]} 3. g3 {[%emt 0:00:06]} Bg7 {[%emt 0:00:22]} 4. Bg2 {[%emt 0:00:01]} O-O {[%emt 1:31:28]} 5. d3 {[%emt 0:02:11]} d6 {[%emt 0:09:30]} 6. Nf3 {[%emt 0:00:23]} e5 {[%emt 0:02:01]} 7. O-O {[%emt 1:28:13]} c6 {[%emt 0:06:32]} 8. Rb1 {[%emt 0:03:50]} Re8 {[%emt 0:01:43]} 9. b4 {[%emt 0:01:52]} Nbd7 {[%emt 0:03:24]} 10. Qb3 {[%emt 0:11:07]} Nf8 {[%emt 0:06:18]} 11. Rd1 {[%emt 0:04:43]} h6 {[%emt 1:04:56]} 12. Bb2 {[%emt 0:07:24]} Ne6 {[%emt 0:18:44]} 13. e3 {[%emt 0:01:44]} Ng5 {[%emt 0:02:38]} 14. Nxg5 {[%emt 0:12:03]} hxg5 {[%emt 0:00:03]} 15. Ne4 {[%emt 0:00:10]} Nh7 {[%emt 0:03:34]} 16. b5 {[%emt 0:03:50]} c5 {[%emt 0:02:28]} 17. d4 {[%emt 0:01:52]} exd4 {[%emt 0:02:35]} 18. exd4 {[%emt 0:00:32]} Bf5 {[%emt 0:00:52]} 19. Re1 {[%emt 0:02:47]} cxd4 {[%emt 0:01:50]} 20. Rbd1 {[%emt 0:01:34]} Qb6 {[%emt 0:06:31]} 21. Qd3 {[%emt 0:03:33]} Re6 {[%emt 0:05:58]} 22. h3 {[%emt 0:13:58]} g4 {[%emt 0:01:31]} 23. hxg4 {[%emt 0:05:46]} Bxg4 {[%emt 0:00:02]} 24. f3 {[%emt 0:00:34]} Bf5 {[%emt 0:00:08]} 25. Bxd4 {[%emt 0:00:05]} Bxd4+ {[%emt 0:00:43]} 26. Qxd4 {[%emt 0:00:03]} Qxd4+ {[%emt 0:04:23]} 27. Rxd4 {[%emt 0:00:02]} Rae8 {[%emt 0:00:08]} 28. Red1 {[%emt 0:00:43]} 1/2-1/2

[Event "MARCEL 1st Div Ch-League 2019"]
[Site "Dhaka"]
[Date "2019.11.17"]
[Round "6.4"]
[White "Hasan Md, Emam"]
[Black "Sacchu, Afzal Hossain"]
[Result "1-0"]
[ECO "B90"]
[WhiteElo "2046"]
[BlackElo "1996"]
[Annotator "NA RC"]
[PlyCount "107"]
[EventDate "2019.11.12"]
[EventCountry "BAN"]
[SourceTitle "playchess.com"]
[Source "ChessBase"]
[SourceQuality "1"]
[TimeControl "5400+30"]

1. e4 {[%emt 0:00:00]} c5 {[%emt 0:00:11]} 2. Nf3 {[%emt 0:02:28]} d6 {[%emt 0:00:20]} 3. d4 {[%emt 0:00:08]} cxd4 {[%emt 0:00:14]} 4. Nxd4 {[%emt 0:00:02]} Nf6 {[%emt 0:00:18]} 5. Nc3 {[%emt 0:00:10]} a6 {[%emt 0:00:14]} 6. h3 {[%emt 0:02:10]} h5 {[%emt 0:03:03] B90: Sicilian Najdorf: Unusual White 6th moves, 6 Be3 Ng4 and 6 Be3 e5} (6... e5 7. Nde2 h5 8. g3 Nbd7 9. Bg2 b5 10. O-O Bb7 11. a4 b4 12. Nd5 Nxd5 13. exd5 Be7 14. a5 Rb8 15. Bd2 {1-0 (36) Wei,Y (2721)-Vachier Lagrave,M (2774) chess.com INT 2019}) 7. Be3 {[%emt 0:01:43]} e5 {[%emt 0:01:27]} 8. Nb3 {[%emt 0:00:20]} Be6 {[%emt 0:00:23]} 9. Qd2 {[%emt 0:02:03]} Be7 {[%emt 0:01:43]} 10. g3 {[%emt 0:02:31]} Nbd7 {[%emt 0:04:21]} 11. Bg2 $146 {[%emt 0:00:31]} ({Predecessor:} 11. f4 b5 12. Bg2 Rc8 13. O-O Qc7 14. f5 Bc4 15. Rf2 {0-1 (58) Roebers,E (2111)-Kirchei,V (1955) Bratislava 2019}) 11... Qc7 {[%emt 0:01:53]} 12. O-O {[%emt 0:03:33]} Rc8 {[%emt 0:01:53]} 13. Rac1 {[%emt 0:00:18]} Nb6 {[%emt 0:03:40]} 14. Bxb6 {[%emt 0:04:01]} Qxb6 {[%emt 0:00:23]} 15. Nd5 {[%emt 0:00:17]} Nxd5 {[%emt 0:01:25]} 16. exd5 {[%emt 0:00:03]} Bd7 {[%emt 0:00:48]} 17. c4 {[%emt 0:01:23]} O-O {[%emt 0:01:56]} 18. Rfd1 {[%emt 0:04:28]} f5 {[%emt 0:03:07]} 19. c5 {[%emt 0:17:46]} Qd8 {[%emt 0:08:48]} 20. c6 {[%emt 0:06:05]} bxc6 $16 {[%emt 0:02:28]} 21. dxc6 {[%emt 0:00:02]} Be8 {[%emt 0:01:58]} 22. Bf1 {[%emt 0:00:50]} Kh8 {[%emt 0:07:50]} 23. Na5 {[%emt 0:10:05]} Bg5 {[%emt 0:12:45]} 24. f4 {[%emt 0:04:13]} exf4 {[%emt 0:03:29]} 25. gxf4 {[%emt 0:00:02]} Be7 {[%emt 0:12:23]} 26. Bg2 {[%emt 0:02:34]} Bf7 {[%emt 0:04:41]} 27. b4 {[%emt 0:01:26]} Qc7 {[%emt 0:01:55]} 28. Kh1 {[%emt 0:02:18]} d5 {[%emt 0:01:23]} 29. a3 {[%emt 0:01:16]} Rfe8 {[%emt 0:02:34]} 30. Qd3 {[%emt 0:02:54]} g6 {[%emt 0:02:22]} 31. Bxd5 {[%emt 0:01:25]} Bxd5+ {[%emt 0:02:12]} 32. Qxd5 {[%emt 0:01:16]} Qxf4 {[%emt 0:00:41]} 33. Qd4+ {[%emt 0:00:24]} Qxd4 {[%emt 0:00:33]} 34. Rxd4 {[%emt 0:00:01]} Bg5 {[%emt 0:00:35]} 35. Rc2 {[%emt 0:01:40]} f4 {[%emt 0:01:06]} 36. Kg2 {[%emt 0:02:46]} Bd8 {[%emt 0:01:08]} 37. Nb7 {[%emt 0:00:23]} Bc7 {[%emt 0:00:30]} 38. Nd6 {[%emt 0:00:55]} Bxd6 {[%emt 0:00:01]} 39. Rxd6 {[%emt 0:00:12]} Kg7 {[%emt 0:00:26]} 40. a4 {[%emt 0:00:19]} Re5 {[%emt 0:00:28]} 41. c7 {[%emt 0:00:15]} Re7 {[%emt 0:00:43]} 42. Rdc6 {[%emt 0:00:19]} Re5 {[%emt 0:00:20]} 43. Rxa6 {[%emt 0:00:47]} g5 {[%emt 0:00:25]} 44. b5 {[%emt 0:01:31]} g4 {[%emt 0:00:50]} 45. hxg4 {[%emt 0:00:08]} hxg4 {[%emt 0:00:01]} 46. b6 {[%emt 0:00:19]} Rce8 {[%emt 0:01:38]} 47. c8=Q {[%emt 0:01:21]} Rxc8 {[%emt 0:00:03]} 48. Rxc8 {[%emt 0:00:12]} Re2+ {[%emt 0:00:06]} 49. Kf1 {[%emt 0:01:11]} Rb2 {[%emt 0:00:03]} 50. Ra7+ {[%emt 0:01:38]} Kg6 {[%emt 0:00:27]} 51. b7 {[%emt 0:00:50]} Rb1+ {[%emt 0:00:11]} 52. Ke2 {[%emt 0:00:13]} Rb2+ {[%emt 0:00:12]} 53. Kd3 {[%emt 0:00:06]} Rb3+ {[%emt 0:00:31]} 54. Ke4 {[%emt 0:23:09]} 1-0

[Event "MARCEL 1st Div Ch-League 2019"]
[Site "Dhaka"]
[Date "2019.11.17"]
[Round "6.5"]
[White "Mohammad, Shameem"]
[Black "Imam, Farhadur"]
[Result "1/2-1/2"]
[ECO "D02"]
[WhiteElo "2015"]
[BlackElo "2033"]
[Annotator "NA RC"]
[PlyCount "123"]
[EventDate "2019.11.12"]
[EventCountry "BAN"]
[SourceTitle "playchess.com"]
[Source "ChessBase"]
[SourceQuality "1"]
[TimeControl "5400+30"]

1. d4 {[%emt 0:00:00]} d5 {[%emt 0:00:33]} 2. Nf3 {[%emt 0:00:00]} Nf6 {[%emt 0:00:27]} 3. g3 {[%emt 0:00:00]} Bf5 {[%emt 0:03:38]} 4. Bg2 {[%emt 0:00:00]} e6 {[%emt 0:01:03]} 5. O-O {[%emt 0:00:11]} c5 {[%emt 0:01:12]} 6. c4 {[%emt 0:00:13]} cxd4 {[%emt 0:03:12]} 7. Nxd4 {[%emt 0:00:28]} Be4 {[%emt 0:00:34]} 8. Nc3 {[%emt 0:05:44]} Bxg2 {[%emt 0:00:48]} 9. Kxg2 {[%emt 0:00:05]} Be7 {[%emt 0:10:00]} (9... dxc4 $11 {keeps the balance.} 10. Bg5 Nbd7) 10. Qa4+ {[%emt 0:01:44]} Nbd7 {[%emt 0:00:30]} 11. cxd5 {[%emt 0:00:24]} exd5 {[%emt 0:01:44]} (11... Nxd5 $142 12. Nxd5 exd5) 12. Qb5 $14 {[%emt 0:05:26]} (12. Nf5 $18 O-O 13. Rd1) 12... Qb6 {[%emt 0:03:46]} 13. Nxd5 {[%emt 0:12:36]} Qxd4 {[%emt 0:00:32]} 14. Nc7+ {[%emt 0:00:25]} Kd8 {[%emt 0:00:40]} 15. Nxa8 {[%emt 0:02:00]} Qe4+ {[%emt 0:10:20]} 16. f3 {[%emt 0:00:59]} Qc6 {[%emt 0:00:01]} 17. Qxc6 {[%emt 0:05:21]} bxc6 {[%emt 0:00:25]} 18. Be3 {[%emt 0:07:33]} Kc8 {[%emt 0:02:00]} 19. Bxa7 {[%emt 0:01:14]} Kb7 {[%emt 0:00:01]} 20. Bd4 {[%emt 0:00:30]} Rxa8 {[%emt 0:00:05]} 21. a3 {[%emt 0:01:09]} Bc5 {[%emt 0:02:30]} 22. Rfd1 {[%emt 0:02:33]} Nd5 {[%emt 0:01:11]} 23. e4 {[%emt 0:01:31]} Bxd4 {[%emt 0:02:10]} 24. Rxd4 {[%emt 0:00:02]} N5b6 {[%emt 0:01:02]} 25. Rad1 {[%emt 0:03:01]} Nc5 {[%emt 0:02:55]} 26. Rd8 {[%emt 0:04:15]} Kc7 {[%emt 0:06:49]} 27. Rxa8 {[%emt 0:00:35]} Nxa8 {[%emt 0:00:00]} 28. b4 {[%emt 0:09:46]} Na4 {[%emt 0:00:25]} 29. f4 {[%emt 0:03:29]} Nc3 {[%emt 0:03:07]} 30. Rd4 {[%emt 0:01:05]} Nb6 {[%emt 0:00:52]} 31. Kf3 {[%emt 0:01:04]} Nb5 {[%emt 0:00:40]} 32. Rd3 {[%emt 0:00:25]} Nc4 {[%emt 0:00:02]} 33. e5 {[%emt 0:05:43]} Ncxa3 {[%emt 0:01:04]} 34. Ke4 {[%emt 0:11:01]} Nc2 {[%emt 0:02:40]} 35. Rb3 {[%emt 0:03:00]} g6 {[%emt 0:00:17]} 36. g4 {[%emt 0:00:41]} Kd7 {[%emt 0:00:49]} 37. Rh3 {[%emt 0:01:10]} Nxb4 {[%emt 0:02:36]} 38. Rxh7 {[%emt 0:00:11]} Ke8 {[%emt 0:00:43]} 39. f5 {[%emt 0:01:13]} gxf5+ {[%emt 0:00:02]} 40. gxf5 {[%emt 0:00:07]} Nc3+ {[%emt 0:01:17]} 41. Kd4 {[%emt 0:00:16]} Ncd5 {[%emt 0:00:26]} 42. Kc5 {[%emt 0:01:21]} Nd3+ {[%emt 0:01:00]} 43. Kxc6 {[%emt 0:00:20]} Ne7+ {[%emt 0:00:03]} 44. Kd6 {[%emt 0:02:13]} Nxf5+ {[%emt 0:00:03]} 45. Kd5 {[%emt 0:00:36]} Ne7+ {[%emt 0:00:14]} 46. Kd6 {[%emt 0:01:04]} Nf5+ {[%emt 0:00:51]} 47. Kd5 {[%emt 0:00:07]} Ne7+ {[%emt 0:01:55]} 48. Kd4 {[%emt 0:01:17]} Nf4 {[%emt 0:00:36]} 49. h4 {[%emt 0:01:05]} Kf8 {[%emt 0:01:29]} 50. Rh8+ {[%emt 0:01:34]} Ng8 {[%emt 0:03:54]} 51. Ke4 {[%emt 0:02:08]} Ng6 {[%emt 0:02:36]} 52. Rh7 {[%emt 0:00:30]} N8e7 {[%emt 0:01:18]} 53. h5 {[%emt 0:01:07]} Nh4 {[%emt 0:00:10]} 54. Rh6 {[%emt 0:01:20]} Nhf5 {[%emt 0:00:05]} 55. Rf6 {[%emt 0:04:04]} Ng3+ {[%emt 0:00:20]} 56. Kd4 {[%emt 0:00:30]} Nxh5 {[%emt 0:00:09]} 57. Rf3 {[%emt 0:00:47]} Ng7 {[%emt 0:00:25]} 58. Rxf7+ {[%emt 0:00:22]} Kxf7 {[%emt 0:00:01]} 59. e6+ {[%emt 0:00:17]} Kxe6 {[%emt 0:00:03]} 60. Ke4 {[%emt 0:00:14]} Ngf5 {[%emt 0:00:39]} 61. Kf4 {[%emt 0:00:08]} Nd5+ {[%emt 0:00:22]} 62. Ke4 {[%emt 0:02:46] Ke5+} 1/2-1/2

[Event "MARCEL 1st Div Ch-League 2019"]
[Site "Dhaka"]
[Date "2019.11.17"]
[Round "6.6"]
[White "Sambarta Banerjee"]
[Black "Habibur Rahman, Sohel"]
[Result "1-0"]
[ECO "E80"]
[WhiteElo "1957"]
[BlackElo "1842"]
[Annotator "NA RC"]
[PlyCount "115"]
[EventDate "2019.11.12"]
[EventCountry "BAN"]
[SourceTitle "playchess.com"]
[Source "ChessBase"]
[SourceQuality "1"]
[TimeControl "5400+30"]

1. d4 {[%emt 0:00:00]} c5 {[%emt 0:00:28]} 2. d5 {[%emt 0:00:00]} d6 {[%emt 0:00:57]} 3. e4 {[%emt 0:00:00]} g6 {[%emt 0:00:39]} 4. c4 {[%emt 0:00:00]} Bg7 {[%emt 0:00:43]} 5. Nc3 {[%emt 0:00:00]} Nf6 {[%emt 0:02:17]} 6. f3 {[%emt 0:02:30]} a6 {[%emt 0:06:50]} 7. Be3 {[%emt 0:00:00] E80: King's Indian: Sämisch: Lines without early ...0-0} Qa5 {[%emt 1:21:36]} 8. Qd2 {[%emt 0:00:00]} Nfd7 {[%emt 0:00:00]} 9. f4 $146 {[%emt 0:00:00]} ({Better is} 9. Be2 $14) ({Predecessor:} 9. Bh6 Bxc3 10. bxc3 Ne5 11. Bg7 Rg8 12. Bxe5 dxe5 13. h4 Nd7 {1-0 (40) So,W (2794)-Merry,A (2388) Douglas 2016}) 9... Bxc3 {[%emt 0:00:00]} 10. Qxc3 {[%emt 0:00:00]} Qxc3+ {[%emt 0:00:00]} 11. bxc3 {[%emt 0:00:00]} Nf6 {[%emt 0:00:00]} 12. Bd3 {[%emt 0:00:00]} Ng4 {[%emt 0:00:00]} 13. Bd2 {[%emt 0:00:00]} f5 {[%emt 0:00:00]} 14. exf5 {[%emt 0:00:00]} Bxf5 {[%emt 0:00:00]} 15. Bxf5 {[%emt 0:00:00]} gxf5 {[%emt 0:00:00]} 16. Rb1 {[%emt 0:00:00]} Ra7 {[%emt 0:00:00]} 17. Nf3 {[%emt 0:00:00]} Rf8 {[%emt 0:00:00]} 18. Ng5 {[%emt 0:00:00]} h6 {[%emt 0:00:00]} 19. Ne6 {[%emt 0:00:00]} Rg8 {[%emt 0:00:00]} 20. a4 {[%emt 0:00:00]} Nf6 {[%emt 0:06:30]} 21. O-O {[%emt 0:00:00]} Nbd7 {[%emt 0:00:00]} 22. a5 {[%emt 0:00:00]} Nf8 {[%emt 0:00:00]} 23. Nxf8 {[%emt 0:00:00]} Rxf8 {[%emt 0:08:00]} 24. Rb2 {[%emt 0:00:00]} Kd7 {[%emt 0:00:00]} 25. Rfb1 {[%emt 0:00:00]} Kc7 {[%emt 0:00:00]} 26. g3 {[%emt 0:00:00]} h5 {[%emt 0:00:00]} 27. Kg2 {[%emt 0:00:00]} Rg8 {[%emt 0:00:00]} 28. Kf3 {[%emt 0:00:00]} Ne4 {[%emt 0:00:00]} 29. Be1 {[%emt 0:00:00]} Rg7 {[%emt 0:00:00]} 30. h3 {[%emt 0:00:00]} Rg8 {[%emt 0:00:00]} 31. Re2 {[%emt 0:00:00]} Kd7 {[%emt 0:00:00]} 32. g4 {[%emt 0:00:00]} hxg4+ {[%emt 0:12:30]} 33. hxg4 {[%emt 0:00:00]} Rh8 {[%emt 0:00:00]} 34. gxf5 {[%emt 0:00:00]} Nf6 {[%emt 0:00:00]} 35. Bg3 {[%emt 0:00:00]} Rh7 {[%emt 0:00:00]} 36. Rbb2 {[%emt 0:00:00]} Kc7 {[%emt 0:00:00]} 37. Rh2 {[%emt 0:00:00]} Rxh2 {[%emt 0:01:36]} 38. Rxh2 {[%emt 0:00:00]} Ra8 {[%emt 0:02:44]} 39. Re2 {[%emt 0:00:00]} Kd7 {[%emt 0:01:44]} 40. Bh4 {[%emt 0:00:31]} Rf8 {[%emt 0:00:54]} 41. Bg5 {[%emt 0:00:48]} Rf7 {[%emt 0:00:52]} 42. Re1 {[%emt 0:02:15]} Kd8 {[%emt 0:00:35]} 43. Bxf6 {[%emt 0:06:05]} Rxf6 {[%emt 0:00:10]} 44. Kg4 {[%emt 0:00:05]} Rf8 {[%emt 0:03:21]} 45. Re6 {[%emt 0:00:21]} Kd7 {[%emt 0:00:55]} 46. f6 {[%emt 0:12:25]} exf6 {[%emt 0:02:36]} 47. Kf5 {[%emt 0:00:07]} Rh8 {[%emt 0:02:45]} 48. Rxf6 {[%emt 0:00:15]} Rh7 {[%emt 0:00:35]} 49. Kg5 {[%emt 0:01:39]} Rh3 {[%emt 0:00:30]} 50. Rf7+ {[%emt 0:02:28]} Kc8 {[%emt 0:00:11]} 51. Kf5 {[%emt 0:01:04]} Rxc3 {[%emt 0:01:19]} 52. Ke6 {[%emt 0:00:02]} Rxc4 {[%emt 0:00:22]} 53. Kxd6 {[%emt 0:00:04]} Kb8 {[%emt 0:01:51]} 54. f5 {[%emt 0:00:12]} Rc1 {[%emt 0:00:09]} 55. f6 {[%emt 0:08:42]} c4 {[%emt 0:00:20]} 56. Rf8+ $2 {[%emt 0:03:16]} (56. Rd7 {mates} Rf1 57. f7 Ka7 58. Ke7 Re1+ 59. Kd8 Rf1 60. Ke8 Kb8 61. d6) 56... Ka7 {[%emt 0:00:02]} 57. Rc8 {[%emt 0:00:08]} Rf1 $18 {[%emt 0:00:21]} 58. Ke7 {[%emt 0:00:24]} 1-0

[Event "MARCEL 1st Div Ch-League 2019"]
[Site "Dhaka"]
[Date "2019.11.17"]
[Round "6.7"]
[White "Sharmin, Samiha Shimmi"]
[Black "Suvankar Maity"]
[Result "0-1"]
[ECO "C54"]
[WhiteElo "1854"]
[BlackElo "1795"]
[Annotator "NA RC"]
[PlyCount "125"]
[EventDate "2019.11.12"]
[EventCountry "BAN"]
[SourceTitle "playchess.com"]
[Source "ChessBase"]
[SourceQuality "1"]
[TimeControl "5400+30"]

1. e4 {[%emt 0:00:00]} e5 {[%emt 0:00:00]} 2. Nf3 {[%emt 0:00:00]} Nc6 {[%emt 0:00:00]} 3. Bc4 {[%emt 0:00:00]} Bc5 {[%emt 0:00:00]} 4. d3 {[%emt 0:00:00]} Nf6 {[%emt 0:00:00]} 5. c3 {[%emt 0:00:01]} d6 {[%emt 0:00:17]} 6. Bb3 {[%emt 0:00:14]} a6 {[%emt 0:00:08]} 7. h3 {[%emt 0:00:13] C54: Giuoco Piano: 4 c3 Nf6, main lines with 5 d4 and 5 d3} Ba7 {[%emt 0:00:57]} 8. Bg5 {[%emt 1:33:32]} h6 {[%emt 0:00:26]} 9. Bh4 {[%emt 1:33:06]} Rg8 $146 {[%emt 0:01:59]} (9... g5 $5 10. Bg3 $8 Be6 $11) ({Predecessor:} 9... Qe7 10. Nbd2 Be6 11. Nf1 O-O-O 12. Bxf6 Qxf6 13. Ne3 Qg6 14. Qe2 Bxe3 15. fxe3 Bxb3 16. axb3 {0-1 (34) Popov,I (2539)-Aleksandrov,A (2614) Serpukhov 2007}) 10. Nbd2 {[%emt 0:01:51]} g5 {[%emt 0:00:26]} 11. Bg3 {[%emt 0:00:12]} Qe7 {[%emt 0:03:41]} 12. Bh2 {[%emt 0:13:58]} h5 {[%emt 1:28:06]} 13. Qe2 {[%emt 1:18:44]} Bd7 {[%emt 0:00:00]} 14. O-O-O {[%emt 0:02:06]} O-O-O {[%emt 0:00:00]} 15. Kb1 {[%emt 0:01:25]} Rg7 {[%emt 0:00:00]} 16. Nc4 {[%emt 0:10:42]} g4 {[%emt 0:00:00]} 17. hxg4 {[%emt 0:54:15]} hxg4 {[%emt 0:00:00]} 18. Nh4 {[%emt 0:00:00]} Rh7 {[%emt 0:00:00]} 19. Bg3 {[%emt 0:00:00]} Rdh8 {[%emt 0:00:00]} 20. Rh2 {[%emt 0:00:00]} Nh5 {[%emt 0:00:00]} 21. Rdh1 {[%emt 0:00:00]} Qg5 {[%emt 0:00:00]} 22. Bd1 {[%emt 0:00:00]} b5 {[%emt 0:00:00]} 23. Nd2 {[%emt 0:00:00]} Kb7 {[%emt 0:00:00]} 24. Nb3 {[%emt 0:00:00]} Bb6 {[%emt 0:00:00]} 25. Bc2 {[%emt 0:00:00]} f5 {[%emt 0:00:00]} 26. exf5 {[%emt 0:00:00]} Bxf5 {[%emt 0:00:00]} 27. Nd2 {[%emt 0:00:00]} Nf4 {[%emt 0:00:00]} 28. Bxf4 {[%emt 0:00:00]} exf4 {[%emt 0:00:00]} 29. g3 {[%emt 0:06:00]} f3 {[%emt 0:00:00]} 30. Qd1 {[%emt 0:00:00]} Rh6 {[%emt 0:00:00]} 31. Re1 {[%emt 0:07:00]} Rf8 {[%emt 0:00:00]} 32. Ne4 {[%emt 0:00:39]} Qd8 {[%emt 0:10:00]} 33. d4 {[%emt 0:02:12]} Bxe4 {[%emt 0:00:00]} 34. Rxe4 {[%emt 0:05:12]} Qg5 {[%emt 0:00:00]} 35. Rh1 {[%emt 0:00:37]} d5 {[%emt 0:00:00]} 36. Re3 {[%emt 0:00:18]} Rhf6 {[%emt 0:00:00]} 37. Rhe1 {[%emt 0:00:16]} Qg7 {[%emt 0:00:00]} 38. Qd3 {[%emt 0:00:37]} Rh8 {[%emt 0:00:00]} 39. Bb3 {[%emt 0:00:26]} Rd8 {[%emt 0:00:00]} 40. Bc2 {[%emt 0:00:54]} Rh8 {[%emt 0:00:00]} 41. Qd2 {[%emt 0:00:18]} Rhf8 {[%emt 0:00:00]} 42. Qd3 {[%emt 0:00:10]} Rh8 {[%emt 0:00:00]} 43. Bb3 {[%emt 0:00:37]} Rd8 {[%emt 0:00:00]} 44. Bc2 {[%emt 0:00:24]} Rh8 {[%emt 0:00:00]} 45. Qd2 {[%emt 0:00:00]} Rhf8 {[%emt 0:00:00]} 46. Kc1 {[%emt 0:00:00]} Rh8 {[%emt 0:00:51]} 47. b3 {[%emt 0:00:00]} Rd8 {[%emt 0:01:52]} 48. Qd3 {[%emt 0:00:30]} b4 {[%emt 0:00:30]} 49. Nf5 {[%emt 0:00:00]} Qg5 {[%emt 0:00:00]} 50. Kb1 bxc3 51. Re6 {[%emt 0:01:30]} Rxf5 {[%emt 0:00:00]} 52. Qxf5 {[%emt 0:00:00]} Qxf5 {[%emt 0:00:00]} 53. Bxf5 {[%emt 0:00:00]} Nxd4 {[%emt 0:01:00]} 54. Bxg4 {[%emt 0:01:30]} Nxe6 {[%emt 0:00:00]} 55. Rxe6 {[%emt 0:00:30]} Bxf2 56. Bxf3 {[%emt 0:01:00]} Ka7 {[%emt 0:00:27]} 57. Be2 {[%emt 0:00:00]} Bb6 {[%emt 0:00:00]} 58. Kc2 {[%emt 0:00:00]} d4 {[%emt 0:00:00]} 59. Kd3 {[%emt 0:00:00]} Rg8 {[%emt 0:00:14]} 60. g4 {[%emt 0:00:00]} Kb7 {[%emt 0:00:31]} (60... a5 $15) 61. a4 {[%emt 0:00:14]} a5 {[%emt 0:00:09]} 62. Bf3+ {[%emt 0:02:46]} Kc8 {[%emt 0:00:30]} 63. Re2 $15 {[%emt 0:02:30]} (63. Bc6 $11) 0-1

[Event "MARCEL 1st Div Ch-League 2019"]
[Site "Dhaka"]
[Date "2019.11.17"]
[Round "6.8"]
[White "Parvej, Nahid Sagar"]
[Black "Hasan, Mostafa Razibul"]
[Result "1-0"]
[ECO "B49"]
[WhiteElo "1976"]
[BlackElo "1903"]
[Annotator "NA RC"]
[PlyCount "61"]
[EventDate "2019.11.12"]
[EventCountry "BAN"]
[SourceTitle "playchess.com"]
[Source "ChessBase"]
[SourceQuality "1"]
[TimeControl "5400+30"]

1. e4 {[%emt 1:30:30]} c5 {[%emt 0:25:51]} 2. Nf3 {[%emt 0:00:00]} Nc6 {[%emt 0:00:27]} 3. d4 {[%emt 0:00:00]} cxd4 {[%emt 0:00:13]} 4. Nxd4 {[%emt 0:01:30]} e6 {[%emt 1:05:29]} 5. Nc3 {[%emt 0:00:00]} a6 {[%emt 0:00:00]} 6. Be3 {[%emt 0:00:00]} Qc7 {[%emt 0:00:00]} 7. Be2 {[%emt 0:00:00]} Nf6 {[%emt 0:00:00]} 8. O-O {[%emt 0:00:00]} b5 {[%emt 0:00:00]} 9. Nxc6 {[%emt 0:00:00]} dxc6 $14 {[%emt 0:00:00]} 10. Bg5 {[%emt 0:00:00]} b4 {[%emt 0:00:00]} 11. Bxf6 {[%emt 0:00:00]} gxf6 {[%emt 0:00:00]} 12. Na4 {[%emt 0:00:00]} Bd6 {[%emt 0:00:00]} 13. h3 {[%emt 0:00:00]} Bb7 {[%emt 0:00:00]} 14. Bf3 {[%emt 0:00:00]} Ke7 {[%emt 0:00:00]} 15. Qe2 {[%emt 0:00:00]} Rhg8 {[%emt 0:00:00]} 16. Rad1 {[%emt 0:00:00]} Rg7 {[%emt 0:00:00]} 17. Rd2 {[%emt 0:00:00]} Qa5 {[%emt 0:00:00]} 18. Rfd1 {[%emt 0:00:00]} Rd8 {[%emt 0:00:00]} 19. e5 {[%emt 0:00:00]} fxe5 {[%emt 0:00:00]} 20. b3 {[%emt 0:00:00]} f5 {[%emt 0:00:00]} 21. Qe3 {[%emt 0:00:00]} e4 {[%emt 0:00:00]} 22. Rxd6 {[%emt 0:00:00]} Rxd6 {[%emt 0:00:00]} 23. Rxd6 {[%emt 0:00:00]} Qe5 {[%emt 0:00:00]} 24. Rd1 {[%emt 0:00:00]} Kf6 {[%emt 0:00:00]} 25. Be2 {[%emt 0:00:00]} c5 {[%emt 0:00:00]} 26. Qh6+ {[%emt 0:00:00]} Rg6 {[%emt 0:00:00]} 27. Qf8+ {[%emt 0:11:30]} Kg5 {[%emt 0:00:00]} 28. Qe7+ {[%emt 0:00:00]} Kh6 {[%emt 0:00:00]} 29. Qh4+ {[%emt 0:00:00]} Kg7 {[%emt 0:12:30]} 30. Rd7+ {[%emt 0:00:00]} Kh8 {[%emt 0:00:00]} 31. Qxh7# {[%emt 0:00:00]} 1-0